fUSD/lending_fUSD_20240422
["ID","MTS","AMOUNT","RATE_DAILY","PERIOD"]
[323182596,1713781861120,-151.0,0.00013699,2]
[323182597,1713781861129,-151.0,0.00013699,2]
[323182598,1713781861139,-151.0,0.00013699,2]
[323182599,1713781861149,-151.0,0.00013699,2]
[323182600,1713781861159,-151.0,0.00013699,2]
[323182601,1713781861170,-677.36,0.00013699,2]
[323182602,1713781861180,-151.0,0.00013699,2]
[323182603,1713781861189,-151.0,0.00013699,2]
[323182604,1713781861198,-151.0,0.00013699,2]
[323182605,1713781861208,-151.0,0.00013699,2]
[323182606,1713781861217,-151.0,0.00013699,2]
[323182607,1713781861227,-254.002731,0.00013699,2]
[323182608,1713781861236,-151.0,0.00013699,2]
[323182609,1713781861247,-151.0,0.00013699,2]
[323182610,1713781861257,-151.0,0.00013699,2]
[323182611,1713781861267,-212.00736,0.00013699,2]
[323182612,1713781861277,-152.068816,0.00013699,2]
[323182613,1713781861287,-151.0,0.00013699,2]
[323182614,1713781861297,-151.0,0.00013699,2]
[323182615,1713781861308,-151.0,0.00013699,2]
[323182616,1713781861318,-151.0,0.00013699,2]
[323182617,1713781861327,-151.0,0.00013699,2]
[323182618,1713781861337,-151.0,0.00013699,2]
[323182619,1713781861346,-151.0,0.00013699,2]
[323182620,1713781861356,-151.0,0.00013699,2]
[323182621,1713781861365,-151.0,0.00013699,2]
[323182622,1713781861374,-151.0,0.00013699,2]
[323182623,1713781861383,-151.0,0.00013699,2]
[323182624,1713781861393,-151.0,0.00013699,2]
[323182625,1713781861402,-151.0,0.00013699,2]
[323182626,1713781861412,-219.052358,0.00013699,2]
[323182627,1713781861421,-151.0,0.00013699,2]
[323182628,1713781861431,-151.0,0.00013699,2]
[323182629,1713781861440,-151.0,0.00013699,2]
[323182630,1713781861450,-151.0,0.00013699,2]
[323182631,1713781861460,-200.0,0.00013699,2]
[323182632,1713781861469,-151.0,0.00013699,2]
[323182633,1713781861478,-151.0,0.00013699,2]
[323182634,1713781861488,-151.0,0.00013699,2]
[323182635,1713781861499,-151.0,0.00013699,2]
[323182636,1713781861508,-151.0,0.00013699,2]
[323182637,1713781861518,-151.0,0.00013699,2]
[323182638,1713781861528,-151.0,0.00013699,2]
[323182639,1713781861538,-156.125741,0.00013699,2]
[323182640,1713781861548,-151.0,0.00013699,2]
[323182641,1713781861558,-690.627973,0.00013699,2]
[323182642,1713781861569,-690.627973,0.00013699,2]
[323182643,1713781861578,-690.627973,0.00013699,2]
[323182644,1713781861589,-690.627973,0.00013699,2]
[323182645,1713781861598,-690.627973,0.00013699,2]
[323182646,1713781861607,-690.627973,0.00013699,2]
[323182647,1713781861617,-224.718486,0.00013699,2]
[323182648,1713781861626,-154.718461,0.00013699,2]
[323182649,1713781861636,-151.0,0.00013699,2]
[323182650,1713781861646,-151.0,0.00013699,2]
[323182651,1713781861656,-151.0,0.00013699,2]
[323182652,1713781861666,-151.0,0.00013699,2]
[323182653,1713781861676,-151.0,0.00013699,2]
[323182654,1713781861686,-151.0,0.00013699,2]
[323182655,1713781861696,-151.0,0.00013699,2]
[323182656,1713781861706,-1006.62,0.00013699,2]
[323182657,1713781861716,-151.0,0.00013699,2]
[323182658,1713781861727,-151.0,0.00013699,2]
[323182659,1713781861738,-287.049334,0.00013699,2]
[323182660,1713781861750,-151.0,0.00013699,2]
[323182661,1713781861760,-151.0,0.00013699,2]
[323182662,1713781861773,-151.0,0.00013699,2]
[323182663,1713781861784,-500.0,0.00013699,2]
[323182664,1713781861794,-151.0,0.00013699,2]
[323182665,1713781861805,-151.0,0.00013699,2]
[323182666,1713781861817,-151.0,0.00013699,2]
[323182667,1713781861828,-152.185654,0.00013699,2]
[323182668,1713781861839,-228.417759,0.00013699,2]
[323182669,1713781861852,-151.0,0.00013699,2]
[323182670,1713781861862,-151.0,0.00013699,2]
[323182671,1713781861873,-151.0,0.00013699,2]
[323182672,1713781861883,-151.0,0.00013699,2]
[323182673,1713781861894,-151.0,0.00013699,2]
[323182674,1713781861904,-151.0,0.00013699,2]
[323182675,1713781861915,-151.0,0.00013699,2]
[323182676,1713781861926,-151.0,0.00013699,2]
[323182677,1713781861937,-151.0,0.00013699,2]
[323182678,1713781861948,-151.0,0.00013699,2]
[323182679,1713781861960,-151.0,0.00013699,2]
[323182680,1713781861970,-151.0,0.00013699,2]
[323182681,1713781861980,-151.0,0.00013699,2]
[323182682,1713781861992,-151.0,0.00013699,2]
[323182683,1713781862001,-151.0,0.00013699,2]
[323182684,1713781862011,-151.0,0.00013699,2]
[323182685,1713781862021,-151.0,0.00013699,2]
[323182686,1713781862032,-151.0,0.00013699,2]
[323182687,1713781862044,-258.41579,0.00013699,2]
[323182688,1713781862055,-151.0,0.00013699,2]
[323182689,1713781862066,-151.0,0.00013699,2]
[323182690,1713781862075,-151.0,0.00013699,2]
[323182691,1713781862085,-151.0,0.00013699,2]
[323182692,1713781862095,-151.0,0.00013699,2]
[323182693,1713781862105,-250.0,0.000137,2]
[323182694,1713781862116,-198229.6251,0.000137,2]
[323182695,1713781862126,-162.897887,0.000137,2]
[323182696,1713781862135,-690.627973,0.000137,2]
[323182697,1713781862145,-79.96315688,0.000137,2]
[323182698,1713781862164,-270.77022823,0.000137,2]
[323182699,1713781862176,-339.89458789,0.000137,2]
[323182700,1713781862187,-151.0,0.000137,2]
[323182701,1713781862198,-155.93,0.000137,2]
[323182702,1713781862209,-500.0,0.00013782,2]
[323182703,1713781862220,-500.0,0.00013791,2]
[323182704,1713781862230,-169.63,0.00013798,2]
[323182705,1713781862241,-500.0,0.000138,2]
[323182706,1713781862252,-170.8,0.0001397,2]
[323182707,1713781862262,-500.0,0.00013972,2]
[323182708,1713781862272,-369.19398304,0.00013972,2]
[323182709,1713781862283,-500.0,0.00013972,2]
[323182710,1713781862294,-390.80142907,0.00013972,2]
[323182711,1713781862352,-109.19857093,0.00013972,2]
[323182712,1713781862363,-500.0,0.00013972,2]
[323182713,1713781862375,-495.40530132,0.00013972,2]
[323182714,1713781862385,-500.0,0.00013972,2]
[323182715,1713781862396,-500.0,0.00013972,2]
[323182716,1713781862408,-101.65264136,0.00013972,2]
[323182734,1713782010917,1477.05,0.00010731,2]
[323182737,1713782159200,168.49,9.822e-05,2]
[323182738,1713782483114,468.97776118,0.00010357,2]
[323182739,1713782483136,954.94223882,0.00010357,2]
[323182741,1713782593469,3402.4778031,0.00013287,6]
[323182742,1713782593494,75000.0,0.00013287,6]
[323182743,1713782593519,75000.0,0.00013287,6]
[323182744,1713782593543,50000.0,0.00013287,6]
[323182745,1713782593567,50000.0,0.00013287,6]
[323182746,1713782593591,50000.0,0.00013287,6]
[323182747,1713782703413,300.0,0.00027121,120]
[323182748,1713782765709,596.9169028,0.00011898,7]
[323182749,1713782776075,9179.22619712,0.00011303,7]
[323182750,1713782794014,9179.22619712,0.00011303,7]
[323182751,1713782810024,3507.17389716,0.00011303,7]
[323182764,1713782979499,1372.42,0.00010133,2]
[323182765,1713783002697,150.0,0.00010133,2]
[323182766,1713783009462,150.0,0.00010133,2]
[323182767,1713783009548,150.0,0.00010133,2]
[323182768,1713783009637,150.0,0.00010133,2]
[323182769,1713783009711,72.63776118,0.00010133,2]
[323182770,1713783009731,78.54013237,0.00010133,2]
[323182772,1713783031896,-1611.94204831,0.00011699,2]
[323182773,1713783032002,-564.72049553,0.00011699,2]
[323182774,1713783032015,-144.79865656,0.00011699,2]
[323182775,1713783032024,-123.46607036,0.00011799,2]
[323182776,1713783032039,-26.53392964,0.00011799,2]
[323182777,1713783032049,-150.0,0.00011799,2]
[323182778,1713783032058,-172.1792927,0.000118,2]
[323182779,1713783032067,-48.85469077,0.000118,2]
[323182780,1713783032079,-2513.68307764,0.000118,2]
[323182781,1713783032106,-923.58946258,0.000118,2]
[323182782,1713783032148,-300.6296171,0.000118,2]
[323182783,1713783032159,-394.56081377,0.000118,2]
[323182784,1713783032169,-107.82882252,0.000118,2]
[323182785,1713783032182,-84.73651836,0.000118,2]
[323182786,1713783032191,-161.31221784,0.000118,2]
[323182787,1713783032200,-210.25031193,0.0001189,2]
[323182788,1713783032212,-210.25031193,0.0001189,2]
[323182789,1713783032223,-3260.73997617,0.00011898,2]
[323182790,1713783032232,-1287.67582851,0.00011898,2]
[323182791,1713783032275,-1048.93453551,0.00011898,2]
[323182795,1713783038442,-630.61540631,0.00011898,2]
[323182796,1713783038452,-207.72132305,0.00011898,2]
[323182797,1713783038461,-215.61228976,0.00011898,2]
[323182798,1713783038471,-255.3668917,0.00011898,2]
[323182799,1713783038486,-155.02897585,0.00011898,2]
[323182800,1713783038496,-485.90690104,0.00011898,2]
[323182801,1713783038505,-1243.96601479,0.00011898,2]
[323182802,1713783038514,-3006.83065527,0.00011898,2]
[323182803,1713783038523,-1000.0,0.00011899,2]
[323182804,1713783038533,-3267.95663341,0.00011899,2]
[323182805,1713783038542,-266683.17891521,0.000119,2]
[323182832,1713783040525,-253.44497898,0.000119,2]
[323182833,1713783040536,-658.89701571,0.000119,2]
[323182834,1713783040547,-5638.55550929,0.000119,2]
[323182835,1713783040579,-361464.18526469,0.000119,2]
[323182836,1713783040597,-4364.5127787,0.000119,2]
[323182837,1713783040633,-17793.43869762,0.000119,2]
[323182838,1713783040644,-2532.9872,0.000119,2]
[323182839,1713783040682,-12307.77371451,0.000119,2]
[323182855,1713783043044,-635769.9999999,0.000119,2]
[323182856,1713783043192,-2460.35933157,0.000119,2]
[323182857,1713783043203,-64022.08408477,0.000119,2]
[323182858,1713783043247,-957.25129297,0.000119,2]
[323182859,1713783043288,-5269.4448379,0.000119,2]
[323182861,1713783045964,-522.2476379,0.000118,2]
[323182862,1713783045973,-15863.97959343,0.000119,2]
[323182863,1713783046072,-8999.19902762,0.000119,2]
[323182866,1713783057764,200.7089839,0.00011304,2]
[323182867,1713783071608,-150.0,0.00011799,2]
[323182868,1713783071641,-150.0,0.00011799,2]
[323182869,1713783071674,-300.0,0.00011799,2]
[323182870,1713783071705,-4241.05298685,0.000118,2]
[323182871,1713783071730,-817.84000414,0.000118,2]
[323182872,1713783071755,-1808.72074226,0.00011898,2]
[323182873,1713783071781,-537.49633158,0.00011898,2]
[323182874,1713783071807,-532.65235782,0.00011898,2]
[323182875,1713783071832,-1000.0,0.00011899,2]
[323182876,1713783071857,-155.10683507,0.00011899,2]
[323182877,1713783071882,-1470.21150395,0.00011899,2]
[323182878,1713783071908,-4134.91923833,0.000119,2]
[323182879,1713783077995,628.042219,0.00022,30]
[323182880,1713783209762,200.0,0.00013698,10]
[323182881,1713783210022,200.0,0.00013972,10]
[323182882,1713783210311,200.0,0.00014246,10]
[323182883,1713783210867,200.0,0.0001452,10]
[323182884,1713783211050,200.0,0.00014794,10]
[323182887,1713783433682,-1263.19052001,0.00011799,2]
[323182888,1713783433704,-807.98798475,0.000118,2]
[323182889,1713783433725,-179.26683239,0.000118,2]
[323182890,1713783433752,-749.55466285,0.00011899,2]
[323182891,1713783434967,-1233.87226369,0.00011899,2]
[323182892,1713783434987,-1766.12773631,0.000119,2]
[323182893,1713783435868,-3000.0,0.000119,2]
[323182894,1713783436753,-3000.0,0.000119,2]
[323182895,1713783437881,-3000.0,0.000119,2]
[323182896,1713783438607,-3000.0,0.000119,2]
[323182897,1713783439340,-3000.0,0.000119,2]
[323182898,1713783440582,-3000.0,0.000119,2]
[323182899,1713783441235,-3000.0,0.000119,2]
[323182900,1713783442069,-3000.0,0.000119,2]
[323182903,1713783454843,-3000.0,0.000119,2]
[323182904,1713783457215,-3000.0,0.000119,2]
[323182905,1713783457882,-3000.0,0.000119,2]
[323182906,1713783484891,1362.36,0.00010246,2]
[323182907,1713783516041,361.23601401,0.00010246,2]
[323182908,1713783517857,408.48862747,0.00010246,2]
[323182909,1713783517980,155.0,0.00010246,2]
[323182910,1713783520201,365.76773722,0.00010246,2]
[323182911,1713783522570,67.89850503,0.00010246,2]
[323182912,1713783522593,220.53081854,0.00010246,2]
[323182913,1713783527169,173.04930782,0.00010246,2]
[323182914,1713783527490,319.95927235,0.00010246,2]
[323182915,1713783530011,361.23601401,0.00010246,2]
[323182916,1713783534678,288.42932357,0.00010246,2]
[323182917,1713783536278,1636.79526371,0.00011303,2]
[323182918,1713783536299,363.20473629,0.00011303,2]
[323182919,1713783537867,408.48862747,0.00010246,2]
[323182920,1713783539983,234.02253581,0.00010246,2]
[323182921,1713783540200,365.76773722,0.00010246,2]
[323182922,1713783542962,173.04930782,0.00010246,2]
[323182923,1713783543495,319.84428273,0.00010246,2]
[323182924,1713783548746,361.23601401,0.00010246,2]
[323182925,1713783552531,288.42932357,0.00010246,2]
[323182926,1713783556202,365.76773722,0.00010246,2]
[323182927,1713783557862,120.18969786,0.00010246,2]
[323182928,1713783557884,288.29892961,0.00010246,2]
[323182929,1713783559306,173.04930782,0.00010246,2]
[323182930,1713783564897,-1388.93541559,0.00011898,2]
[323182931,1713783564922,-2611.06458441,0.00011899,2]
[323182932,1713783565971,361.07753369,0.00010246,2]
[323182933,1713783566293,-4000.0,0.00011899,2]
[323182934,1713783568637,288.31578437,0.00010246,2]
[323182935,1713783575468,-2248.4682,0.00011899,2]
[323182936,1713783575892,408.31930259,0.00010246,2]
[323182937,1713783580905,365.76773722,0.00010246,2]
[323182938,1713783582968,173.04930782,0.00010246,2]
[323182939,1713783587869,-4000.0,0.00011899,2]
[323182940,1713783588543,-4000.0,0.00011899,2]
[323182941,1713783589318,-4000.0,0.00011899,2]
[323182942,1713783590005,-2490.54613519,0.00011899,2]
[323182943,1713783590027,-1509.45386481,0.000119,2]
[323182944,1713783590777,-4000.0,0.000119,2]
[323182945,1713783595794,165.49925274,0.00011303,2]
[323182946,1713783598999,172.97154297,0.00010246,2]
[323182947,1713783602694,603.65130117,0.00011303,2]
[323182948,1713783602715,2561.98720787,0.00011303,2]
[323182949,1713783604221,365.59016847,0.00010246,2]
[323182950,1713783608550,-537.58418051,0.00011898,2]
[323182951,1713783608571,-155.0,0.00011899,2]
[323182952,1713783608594,-639.25094462,0.00011899,2]
[323182953,1713783608615,-2668.16487487,0.00011899,2]
[323182954,1713783609097,-3329.00300578,0.00011899,2]
[323182955,1713783609120,-670.99699422,0.000119,2]
[323182956,1713783618735,-4000.0,0.00011898,2]
[323182957,1713783619356,-4000.0,0.00011898,2]
[323182958,1713783622261,72.42262366,0.00011303,2]
[323182959,1713783622282,529.32475234,0.00011303,2]
[323182960,1713783652386,10000.0,0.000224,30]
[323182961,1713783767342,-4000.0,0.00011641,2]
[323182962,1713783767988,-3739.509719,0.00011641,2]
[323182963,1713783768011,-260.490281,0.000117,2]
[323182964,1713783768724,-4000.0,0.000117,2]
[323182967,1713783769480,-3739.509719,0.000117,2]
[323182968,1713783769502,-260.490281,0.00011898,2]
[323182969,1713783770922,-4000.0,0.00011898,2]
[323182970,1713783771578,-3739.509719,0.00011898,2]
[323182971,1713783771600,-155.0,0.00011898,2]
[323182972,1713783771622,-105.490281,0.00011898,2]
[323182973,1713783772925,-78.871819,0.00011898,2]
[323182974,1713783772948,-565.34977281,0.00011898,2]
[323182975,1713783772970,-539.09685201,0.00011899,2]
[323182976,1713783772992,-155.0,0.00011899,2]
[323182977,1713783773013,-2383.69524,0.00011899,2]
[323182978,1713783773036,-277.98631618,0.000119,2]
[323182979,1713783774246,-4000.0,0.000119,2]
[323182980,1713783775072,-4000.0,0.000119,2]
[323182981,1713783784181,545.84725628,9.518e-05,2]
[323182982,1713783788802,-150.09824119,0.000116,2]
[323182983,1713783788823,-1471.57347394,0.00011898,2]
[323182984,1713783788847,-175.09192514,0.00011898,2]
[323182985,1713783788869,-150.0,0.00011899,2]
[323182986,1713783788892,-150.0,0.00011899,2]
[323182987,1713783788915,-1717.23635973,0.000119,2]
[323182988,1713783798169,545.84725628,9.518e-05,2]
[323182989,1713783820595,308.14275567,9.518e-05,2]
[323182991,1713783961952,1070.83797943,9.982e-05,2]
[323182992,1713783961975,253.05202057,9.982e-05,2]
[323182993,1713783968576,1471.57347394,9.518e-05,2]
[323182994,1713783970492,1275.37450549,9.518e-05,2]
[323182995,1713783970514,3000.0,9.518e-05,2]
[323182996,1713783970537,3000.0,9.518e-05,2]
[323182997,1713783970562,12894.98849086,9.518e-05,2]
[323182998,1713783985059,7843.01901446,9.518e-05,2]
[323182999,1713783986550,150.0,9.518e-05,2]
[323183000,1713783986572,150.0,9.518e-05,2]
[323183001,1713783986593,150.0,9.518e-05,2]
[323183002,1713783986615,150.0,9.518e-05,2]
[323183003,1713783986636,150.0,9.518e-05,2]
[323183004,1713783986656,150.0,9.518e-05,2]
[323183005,1713783986676,150.0,9.518e-05,2]
[323183006,1713783986696,264.97330792,9.518e-05,2]
[323183007,1713783986716,53.58817316,9.518e-05,2]
[323183008,1713784003553,173.04930782,9.518e-05,2]
[323183009,1713784025532,327.01483706,9.518e-05,2]
[323183010,1713784093649,155.0,0.00011201,2]
[323183011,1713784117162,1233.14,0.00011104,2]
[323183012,1713784143082,150.0,0.00011201,2]
[323183013,1713784157750,4617.49025499,0.00011102,2]
[323183014,1713784158860,179.64513915,0.00011201,2]
[323183015,1713784174866,179.55937643,0.00011201,2]
[323183016,1713784184148,310.44643687,0.00011102,2]
[323183017,1713784231353,23900.0,0.00011158,2]
[323183018,1713784231457,2291.0,0.00011201,2]
[323183061,1713784233169,-527.71784461,0.00011202,2]
[323183062,1713784233181,-1039.97487987,0.00011202,2]
[323183063,1713784233191,-160.02512013,0.00011202,2]
[323183064,1713784233204,-3763.78429808,0.00011202,2]
[323183065,1713784233215,-456.22198162,0.00011202,2]
[323183066,1713784233227,-1857.04132465,0.00011202,2]
[323183067,1713784233236,-1733.38860355,0.00011303,2]
[323183068,1713784233246,-155.27166428,0.00011576,2]
[323183069,1713784233255,-732.19,0.00011682,2]
[323183070,1713784233265,-150.0,0.00011756,2]
[323183071,1713784233274,-250.0,0.00011776,2]
[323183072,1713784233284,-1280.45634442,0.00011797,2]
[323183073,1713784233384,-717.74409921,0.00011797,2]
[323183074,1713784233394,-7887.28781753,0.00011797,2]
[323183075,1713784233405,-2788.60585746,0.00011797,2]
[323183076,1713784233459,-558.15546194,0.00011797,2]
[323183077,1713784234394,-903.55095595,0.00011797,2]
[323183078,1713784234406,-531.70435335,0.00011797,2]
[323183079,1713784234417,-1733.56127489,0.00011797,2]
[323183080,1713784234443,-2951.27267888,0.00011797,2]
[323183081,1713784234456,-155.27166428,0.0001185,2]
[323183082,1713784234465,-210.25031194,0.0001189,2]
[323183083,1713784234475,-942.30968993,0.00011898,2]
[323183084,1713784234488,-288.40093877,0.00011898,2]
[323183085,1713784234498,-416.47347174,0.00011898,2]
[323183086,1713784234507,-298.58847674,0.00011898,2]
[323183087,1713784234517,-155.0,0.00011898,2]
[323183088,1713784234527,-155.11003247,0.00011898,2]
[323183089,1713784234536,-799.40020747,0.00011898,2]
[323183090,1713784234545,-202.26348816,0.00011898,2]
[323183091,1713784234554,-487.16370468,0.00011898,2]
[323183092,1713784234564,-1781.91306782,0.00011898,2]
[323183093,1713784234574,-378.89764759,0.00011898,2]
[323183094,1713784234583,-155.0,0.00011898,2]
[323183095,1713784234592,-647.00048554,0.00011898,2]
[323183096,1713784234655,-852.40511334,0.00011898,2]
[323183097,1713784234667,-4331.02072546,0.00011898,2]
[323183098,1713784238087,-3822.32687541,0.00011898,2]
[323183099,1713784238096,-3291.07158309,0.00011899,2]
[323183100,1713784238480,-5041.01239672,0.00011899,2]
[323183101,1713784238494,-3314.4156,0.00011899,2]
[323183110,1713784240306,-5821.64,0.00011899,2]
[323183111,1713784240318,-1746.09605456,0.00011899,2]
[323183112,1713784240328,-150.99,0.00011899,2]
[323183113,1713784240338,-325.99,0.00011899,2]
[323183114,1713784240348,-330.31,0.00011899,2]
[323183115,1713784240358,-4559.60065175,0.000119,2]
[323183116,1713784240531,-537.81395013,0.000119,2]
[323183119,1713784240901,-28088.15754475,0.000119,2]
[323183133,1713784243899,-45484.13505612,0.000119,2]
[323183134,1713784243930,-3635.0,0.000119,2]
[323183159,1713784246148,-824.74833168,0.000119,2]
[323183160,1713784246161,-38495.7618599,0.000119,2]
[323183161,1713784246173,-35578.42761487,0.000119,2]
[323183162,1713784246259,-649.3866149,0.000119,2]
[323183163,1713784246271,-4030.75897368,0.000119,2]
[323183165,1713784256873,150.0,0.00011102,2]
[323183166,1713784256893,20013.2950439,0.00011102,2]
[323183171,1713784338910,150.0,0.00011102,2]
[323183172,1713784338932,150.0,0.00011102,2]
[323183173,1713784338953,19863.2950439,0.00011102,2]
[323183174,1713784361076,6245.4688814,0.00011102,2]
[323183175,1713784361100,3626.55231499,0.00011102,2]
[323183176,1713784369018,11792.56799174,0.00011102,2]
[323183177,1713784379865,10000.0,0.000224,30]
[323183179,1713784410536,200.0,0.00013698,10]
[323183180,1713784410785,248.02572689,0.00013972,10]
[323183181,1713784427788,169.58,9.354e-05,2]
[323183182,1713784434730,10000.0,0.000224,30]
[323183183,1713784482699,1323.65,9.772e-05,2]
[323183184,1713784518073,1374.1772332,9.772e-05,2]
[323183185,1713784540218,1374.1772332,9.772e-05,2]
[323183186,1713784556042,1374.1772332,9.772e-05,2]
[323183187,1713784576037,1374.1772332,9.772e-05,2]
[323183188,1713784596442,1374.1772332,9.772e-05,2]
[323183189,1713784618079,1374.1772332,9.772e-05,2]
[323183192,1713784638187,150.0,9.772e-05,2]
[323183193,1713784638208,150.0,9.772e-05,2]
[323183194,1713784638229,150.0,9.772e-05,2]
[323183195,1713784638249,150.0,9.772e-05,2]
[323183196,1713784638268,150.0,9.772e-05,2]
[323183197,1713784638290,150.0,9.772e-05,2]
[323183198,1713784638311,150.0,9.772e-05,2]
[323183199,1713784638332,150.0,9.772e-05,2]
[323183200,1713784638352,150.0,9.772e-05,2]
[323183201,1713784638373,24.1772332,9.772e-05,2]
[323183202,1713784662042,1374.1772332,9.772e-05,2]
[323183203,1713784684058,1374.1772332,9.772e-05,2]
[323183204,1713784706125,277.89207462,9.772e-05,2]
[323183205,1713784706152,1096.28515858,9.772e-05,2]
[323183206,1713784720050,1374.1772332,9.772e-05,2]
[323183207,1713784738092,1374.1772332,9.772e-05,2]
[323183208,1713784739704,200.13687288,9.723e-05,2]
[323183209,1713784749241,23900.0,0.0001111,2]
[323183210,1713784756071,1374.1772332,9.772e-05,2]
[323183211,1713784772062,1374.1772332,9.772e-05,2]
[323183212,1713784787458,414.24,0.00011123,2]
[323183213,1713784790101,1374.1772332,9.772e-05,2]
[323183214,1713784812060,1374.1772332,9.772e-05,2]
[323183215,1713784830578,1525.70881184,9.772e-05,2]
[323183216,1713784858936,1852.42,0.00011033,2]
[323183217,1713784861166,1200.0,9.772e-05,2]
[323183218,1713784863094,8096.19147204,9.772e-05,2]
[323183219,1713784870751,1471.57347394,9.772e-05,2]
[323183221,1713784878148,179.23,0.00011095,2]
[323183222,1713784878386,179.23,0.00011126,2]
[323183223,1713784878600,179.23,0.00011156,2]
[323183224,1713784888653,1471.57347394,9.772e-05,2]
[323183225,1713784895435,179.23,0.00011187,2]
[323183226,1713784908322,150.0,0.00010686,2]
[323183227,1713784908345,150.0,0.00010686,2]
[323183228,1713784908366,1090.83,0.00010686,2]
[323183229,1713784908666,1471.57347394,9.772e-05,2]
[323183230,1713784917707,319.83502146,9.772e-05,2]
[323183231,1713784922533,8882.06571608,0.00011145,2]
[323183232,1713784928347,1471.57347394,9.772e-05,2]
[323183233,1713784946497,150.0,0.00010673,2]
[323183234,1713784946517,262.04281519,0.00010673,2]
[323183235,1713784946539,5575.07718481,0.00010673,2]
[323183236,1713784948669,1471.57347394,0.00011145,2]
[323183237,1713784954444,2000.0,0.00010959,3]
[323183238,1713784956808,1820.80388649,0.00011117,2]
[323183239,1713784963672,150.0,0.00011145,2]
[323183240,1713784963693,150.0,0.00011145,2]
[323183241,1713784963715,150.0,0.00011145,2]
[323183242,1713784963735,150.0,0.00011145,2]
[323183243,1713784963757,291.92779742,0.00011145,2]
[323183244,1713784964679,1471.57347394,0.00011145,2]
[323183245,1713784978693,568.72390859,0.00011143,2]
[323183246,1713784980684,1471.57347394,0.00011145,2]
[323183247,1713784982476,600.0,0.00011145,2]
[323183248,1713784983195,568.72390858,0.00011144,2]
[323183249,1713784984004,10057.988602,0.00011161,2]
[323183250,1713784985748,4093.82,0.00010682,2]
[323183251,1713784988118,568.72390858,0.00011144,2]
[323183252,1713784994214,169.58,8.546e-05,2]
[323183253,1713784998703,1301.29475176,0.00011143,2]
[323183254,1713785001362,1364.27,8.764e-05,2]
[323183255,1713785001571,1364.27,0.00011028,2]
[323183256,1713785022060,150.0,0.00010959,2]
[323183257,1713785026543,3247.63,0.00010682,2]
[323183258,1713785027643,160.19027074,0.0001114,2]
[323183259,1713785031960,3165.63850904,0.00010681,2]
[323183260,1713785032732,164.24,0.00011005,2]
[323183261,1713785068409,250.0,0.00010667,2]
[323183262,1713785102672,5569.34,0.00011005,2]
[323183263,1713785103457,2666.04,0.00010655,2]
[323183264,1713785103689,2666.04,0.00010658,2]
[323183265,1713785103923,2666.04,0.00010661,2]
[323183266,1713785104132,2666.04,0.00010663,2]
[323183267,1713785104350,2666.04,0.00010666,2]
[323183268,1713785104572,2666.04,0.00010669,2]
[323183269,1713785104778,2666.04,0.00010672,2]
[323183270,1713785108612,2666.04,0.00010675,2]
[323183271,1713785108894,2666.04,0.00010677,2]
[323183272,1713785109112,2666.04,0.0001068,2]
[323183273,1713785109973,2666.04,0.00010683,2]
[323183274,1713785110168,2666.04,0.00010686,2]
[323183275,1713785110404,2666.04,0.00010689,2]
[323183276,1713785111065,2666.04,0.00010691,2]
[323183277,1713785111156,2666.04,0.00010694,2]
[323183278,1713785111255,2666.04,0.00010697,2]
[323183279,1713785111452,2666.04,0.000107,2]
[323183280,1713785111679,2666.04,0.00010702,2]